fUSD/lending_fUSD_20260612
["ID","MTS","AMOUNT","RATE_DAILY","PERIOD"]
[424868866,1781218234000,-570.75,0.00013769,2]
[424868865,1781218234000,-500.0,0.00013769,2]
[424868863,1781218234000,-500.0,0.00013769,2]
[424868842,1781218234000,-500.0,0.00013698,2]
[424868856,1781218234000,-500.0,0.00013769,2]
[424868843,1781218234000,-500.0,0.00013698,2]
[424868830,1781218234000,-500.0,0.00013698,2]
[424868838,1781218234000,-408.73,0.00013698,2]
[424868870,1781218234000,-163.59,0.00014051,2]
[424868819,1781218234000,-500.0,0.00013698,2]
[424868817,1781218234000,-500.0,0.00013698,2]
[424868818,1781218234000,-500.0,0.00013698,2]
[424868821,1781218234000,-500.0,0.00013698,2]
[424868829,1781218234000,-500.0,0.00013698,2]
[424868820,1781218234000,-620.4386371,0.00013698,2]
[424868824,1781218234000,-500.0,0.00013698,2]
[424868823,1781218234000,-500.0,0.00013698,2]
[424868822,1781218234000,-500.0,0.00013698,2]
[424868827,1781218234000,-500.0,0.00013698,2]
[424868825,1781218234000,-500.0,0.00013698,2]
[424868828,1781218234000,-500.0,0.00013698,2]
[424868826,1781218234000,-500.0,0.00013698,2]
[424868831,1781218234000,-500.0,0.00013698,2]
[424868835,1781218234000,-500.0,0.00013698,2]
[424868833,1781218234000,-500.0,0.00013698,2]
[424868841,1781218234000,-500.0,0.00013698,2]
[424868836,1781218234000,-500.0,0.00013698,2]
[424868837,1781218234000,-500.0,0.00013698,2]
[424868832,1781218234000,-500.0,0.00013698,2]
[424868834,1781218234000,-500.0,0.00013698,2]
[424868840,1781218234000,-261.02640831,0.00013698,2]
[424868839,1781218234000,-500.0,0.00013698,2]
[424868868,1781218234000,-218.0,0.00013893,2]
[424868890,1781218234000,-2373.84843247,0.00017654,2]
[424868869,1781218234000,-500.0,0.00014048,2]
[424868894,1781218234000,-521.0,0.00018,2]
[424868899,1781218234000,-642.42,0.00018971,2]
[424868901,1781218234000,-500.0,0.00019039,2]
[424868897,1781218234000,-1798.80895522,0.00018449,2]
[424868900,1781218234000,-1865.36488656,0.00018997,2]
[424868903,1781218234000,-500.0,0.00019313,2]
[424868904,1781218234000,-150.99,0.00019339,2]
[424868902,1781218234000,-500.0,0.00019039,2]
[424868905,1781218234000,-861.06,0.00019339,2]
[424868910,1781218234000,-500.0,0.00019587,2]
[424868898,1781218234000,-502.0,0.00018925,2]
[424868909,1781218234000,-500.0,0.00019587,2]
[424868908,1781218234000,-1934.38338736,0.00019545,2]
[424868907,1781218234000,-10.69216423,0.00019339,2]
[424868911,1781218234000,-731.50273204,0.00019678,2]
[424868914,1781218234000,-502.0,0.00019851,3]
[424868915,1781218234000,-500.0,0.00019861,2]
[424868917,1781218234000,-195.87344,0.0002,2]
[424868913,1781218234000,-1090.43288558,0.00019781,2]
[424868916,1781218234000,-500.0,0.00019861,2]
[424868918,1781218234000,-237.0,0.0002,2]
[424868861,1781218234000,-500.0,0.00013769,2]
[424868912,1781218234000,-2373.84843247,0.00019781,2]
[424868896,1781218234000,-328.41,0.00018424,2]
[424868906,1781218234000,-989.29783577,0.00019339,2]
[424868895,1781218234000,-513.5,0.0001841,2]
[424868867,1781218234000,-328.41,0.00013818,2]
[424868893,1781218234000,-502.0,0.00018,2]
[424868872,1781218234000,-479.0,0.00014364,2]
[424868871,1781218234000,-642.42,0.00014228,2]
[424868874,1781218234000,-152.0,0.00014862,2]
[424868873,1781218234000,-163.59,0.00014747,2]
[424868877,1781218234000,-1090.43288558,0.00015526,2]
[424868879,1781218234000,-642.42,0.00015809,2]
[424868875,1781218234000,-328.41,0.00015353,2]
[424868878,1781218234000,-1500.0,0.00015709,2]
[424868880,1781218234000,-1555.5,0.00016257,2]
[424868882,1781218234000,-731.50273204,0.00016545,2]
[424868876,1781218234000,-2373.84843247,0.00015526,2]
[424868881,1781218234000,-513.5,0.00016438,2]
[424868883,1781218234000,-168.39,0.00016712,2]
[424868884,1781218234000,-1613.0535,0.00016805,2]
[424868892,1781218234000,-1734.62772924,0.00017901,2]
[424868886,1781218234000,-231.66,0.0001699,2]
[424868885,1781218234000,-328.41,0.00016889,2]
[424868888,1781218234000,-1672.7364795,0.00017353,2]
[424868919,1781218234000,-164.0,0.0002,2]
[424868889,1781218234000,-642.42,0.0001739,2]
[424868891,1781218234000,-1090.43288558,0.00017654,2]
[424868887,1781218234000,-192.1695424,0.00017067,2]
[424868959,1781218235000,-151.0,0.00020641,2]
[424868957,1781218235000,-151.0,0.00020641,2]
[424868956,1781218235000,-151.0,0.00020641,2]
[424868950,1781218235000,-151.0,0.00020641,2]
[424868955,1781218235000,-500.0,0.00020641,2]
[424868952,1781218235000,-500.0,0.00020641,2]
[424868953,1781218235000,-151.0,0.00020641,2]
[424868948,1781218235000,-151.0,0.00020641,2]
[424868965,1781218235000,-500.0,0.00020641,2]
[424868954,1781218235000,-151.0,0.00020641,2]
[424868966,1781218235000,-151.0,0.00020641,2]
[424868978,1781218235000,-151.0,0.00020641,2]
[424868964,1781218235000,-2080.17592889,0.00020641,2]
[424868962,1781218235000,-500.0,0.00020641,2]
[424868963,1781218235000,-151.0,0.00020641,2]
[424868967,1781218235000,-500.0,0.00020641,2]
[424868958,1781218235000,-500.0,0.00020641,2]
[424868969,1781218235000,-500.0,0.00020641,2]
[424868968,1781218235000,-151.0,0.00020641,2]
[424868979,1781218235000,-151.0,0.00020641,2]
[424868974,1781218235000,-151.0,0.00020641,2]
[424868972,1781218235000,-151.0,0.00020641,2]
[424868977,1781218235000,-151.0,0.00020641,2]
[424868951,1781218235000,-151.0,0.00020641,2]
[424868961,1781218235000,-151.0,0.00020641,2]
[424868947,1781218235000,-151.0,0.00020641,2]
[424868921,1781218235000,-740.0,0.0002,2]
[424868942,1781218235000,-151.0,0.00020641,2]
[424868920,1781218235000,-521.0,0.0002,2]
[424868923,1781218235000,-154.0,0.0002,2]
[424868922,1781218235000,-163.0,0.0002,2]
[424868976,1781218235000,-151.0,0.00020641,2]
[424868924,1781218235000,-322.0,0.0002,2]
[424868926,1781218235000,-166.0,0.0002,2]
[424868930,1781218235000,-741.0,0.0002,2]
[424868928,1781218235000,-170.0,0.0002,2]
[424868929,1781218235000,-170.0,0.0002,2]
[424868927,1781218235000,-167.0,0.0002,2]
[424868931,1781218235000,-2005.9555727,0.00020093,2]
[424868925,1781218235000,-163.0,0.0002,2]
[424868949,1781218235000,-151.0,0.00020641,2]
[424868934,1781218235000,-151.0,0.0002064,2]
[424868932,1781218235000,-198.51852477,0.000202,2]
[424868935,1781218235000,-151.0,0.0002064,2]
[424868946,1781218235000,-151.0,0.00020641,2]
[424868944,1781218235000,-151.0,0.00020641,2]
[424868945,1781218235000,-151.0,0.00020641,2]
[424868943,1781218235000,-151.0,0.00020641,2]
[424868941,1781218235000,-151.0,0.00020641,2]
[424868940,1781218235000,-151.0,0.00020641,2]
[424868937,1781218235000,-151.0,0.00020641,2]
[424868936,1781218235000,-151.0,0.00020641,2]
[424868938,1781218235000,-200.0,0.00020641,2]
[424868939,1781218235000,-151.0,0.00020641,2]
[424868933,1781218235000,-513.5,0.00020381,2]
[424868971,1781218235000,-500.0,0.00020641,2]
[424868960,1781218235000,-500.0,0.00020641,2]
[424868973,1781218235000,-500.0,0.00020641,2]
[424869010,1781218235000,-150.0,0.00021918,2]
[424869008,1781218235000,-2373.84843247,0.00021909,2]
[424869005,1781218235000,-200.0,0.00021737,2]
[424869011,1781218235000,-237.0,0.00022,2]
[424869015,1781218235000,-163.0,0.00022,2]
[424869014,1781218235000,-740.0,0.00022,2]
[424869012,1781218235000,-164.0,0.00022,2]
[424869013,1781218235000,-521.0,0.00022,2]
[424869023,1781218235000,-170.0,0.00022,2]
[424869025,1781218235000,-200.0,0.00022285,2]
[424869027,1781218235000,-2319.72410669,0.00022285,2]
[424869026,1781218235000,-151.27920566,0.00022285,2]
[424869009,1781218235000,-1090.43288558,0.00021909,2]
[424869018,1781218235000,-488.92,0.00022,2]
[424869021,1781218235000,-167.0,0.00022,2]
[424869020,1781218235000,-166.0,0.00022,2]
[424869019,1781218235000,-163.0,0.00022,2]
[424869022,1781218235000,-170.0,0.00022,2]
[424869028,1781218235000,-513.5,0.00022353,2]
[424869034,1781218235000,-731.50273204,0.00022812,2]
[424869030,1781218235000,-1831.44,0.00022466,2]
[424869031,1781218235000,-196.08621085,0.00022555,7]
[424869029,1781218235000,-1967.31,0.00022466,2]
[424869033,1781218235000,-502.0,0.00022627,6]
[424869032,1781218235000,-345.91931878,0.00022555,7]
[424868975,1781218235000,-500.0,0.00020641,2]
[424869017,1781218235000,-322.0,0.00022,2]
[424869016,1781218235000,-155.0,0.00022,2]
[424869024,1781218235000,-741.0,0.00022,2]
[424869006,1781218235000,-151.0,0.00021737,2]
[424869007,1781218235000,-2236.95670847,0.00021737,2]
[424868980,1781218235000,-151.0,0.00020641,2]
[424868982,1781218235000,-502.0,0.00020776,4]
[424868984,1781218235000,-164.0,0.00021,2]
[424868983,1781218235000,-237.0,0.00021,2]
[424868986,1781218235000,-740.0,0.00021,2]
[424868985,1781218235000,-521.0,0.00021,2]
[424868989,1781218235000,-322.0,0.00021,2]
[424868988,1781218235000,-154.0,0.00021,2]
[424868987,1781218235000,-163.0,0.00021,2]
[424868992,1781218235000,-167.0,0.00021,2]
[424868990,1781218235000,-163.0,0.00021,2]
[424868991,1781218235000,-166.0,0.00021,2]
[424868981,1781218235000,-192.1695424,0.00020723,2]
[424868993,1781218235000,-170.0,0.00021,2]
[424869002,1781218235000,-1393.94,0.00021273,2]
[424869003,1781218235000,-2234.69,0.00021273,2]
[424869004,1781218235000,-502.0,0.00021701,5]
[424868995,1781218235000,-741.0,0.00021,2]
[424868996,1781218235000,-916.54845612,0.00021027,2]
[424868998,1781218235000,-200.0,0.00021189,2]
[424868970,1781218235000,-151.0,0.00020641,2]
[424868997,1781218235000,-1125.0,0.00021096,2]
[424869000,1781218235000,-2157.14243826,0.00021189,2]
[424869001,1781218235000,-8496.24,0.00021273,2]
[424868999,1781218235000,-151.0,0.00021189,2]
[424868994,1781218235000,-170.0,0.00021,2]
[424869051,1781218236000,-2494.55939288,0.00023381,2]
[424869060,1781218236000,-740.0,0.00024,2]
[424869050,1781218236000,-150.0,0.00023014,2]
[424869059,1781218236000,-521.0,0.00024,2]
[424869054,1781218236000,-700.1577,0.00023555,7]
[424869052,1781218236000,-502.0,0.00023552,7]
[424869049,1781218236000,-741.0,0.00023,2]
[424869056,1781218236000,-195.87344,0.00024,2]
[424869058,1781218236000,-164.0,0.00024,2]
[424869057,1781218236000,-237.0,0.00024,2]
[424869062,1781218236000,-322.0,0.00024,2]
[424869061,1781218236000,-163.0,0.00024,2]
[424869053,1781218236000,-517.47461282,0.00023555,7]
[424869055,1781218236000,-2586.85809042,0.00023929,2]
[424869037,1781218236000,-1110.84693156,0.00022928,2]
[424869048,1781218236000,-170.0,0.00023,2]
[424869043,1781218236000,-322.0,0.00023,2]
[424869046,1781218236000,-167.0,0.00023,2]
[424869044,1781218236000,-163.0,0.00023,2]
[424869045,1781218236000,-166.0,0.00023,2]
[424869041,1781218236000,-740.0,0.00023,2]
[424869042,1781218236000,-163.0,0.00023,2]
[424869040,1781218236000,-521.0,0.00023,2]
[424869039,1781218236000,-164.0,0.00023,2]
[424869036,1781218236000,-2405.55389863,0.00022833,2]
[424869035,1781218236000,-333.81194748,0.00022833,2]
[424869038,1781218236000,-237.0,0.00023,2]
[424869065,1781218236000,-167.0,0.00024,2]
[424869047,1781218236000,-170.0,0.00023,2]
[424869066,1781218236000,-170.0,0.00024,2]
[424869078,1781218236000,-172.14,0.00024658,2]
[424869070,1781218236000,-1090.43288558,0.00024036,2]
[424869096,1781218236000,-565.67464128,0.00025025,2]
[424869094,1781218236000,-175.0,0.00025,2]
[424869067,1781218236000,-170.0,0.00024,2]
[424869092,1781218236000,-167.0,0.00025,2]
[424869090,1781218236000,-169.0,0.00025,2]
[424869093,1781218236000,-174.0,0.00025,2]
[424869086,1781218236000,-531.0,0.00025,2]
[424869091,1781218236000,-170.0,0.00025,2]
[424869088,1781218236000,-181.0,0.00025,2]
[424869087,1781218236000,-746.0,0.00025,2]
[424869089,1781218236000,-334.0,0.00025,2]
[424869083,1781218236000,-167.52,0.00024886,7]
[424869084,1781218236000,-245.0,0.00025,2]
[424869085,1781218236000,-169.0,0.00025,2]
[424869095,1781218236000,-749.0,0.00025,2]
[424869079,1781218236000,-161.05,0.00024658,2]
[424869071,1781218236000,-150.0,0.00024164,2]
[424869069,1781218236000,-2373.84843247,0.00024036,2]
[424869068,1781218236000,-741.0,0.00024,2]
[424869064,1781218236000,-166.0,0.00024,2]
[424869073,1781218236000,-192.1695424,0.00024379,2]
[424869075,1781218236000,-502.0,0.00024478,8]
[424869063,1781218236000,-163.0,0.00024,2]
[424869077,1781218236000,-1000.0,0.00024658,2]
[424869076,1781218236000,-184.8,0.000246,7]
[424869074,1781218236000,-2682.57183977,0.00024477,2]
[424869081,1781218236000,-488.92,0.00024714,7]
[424869082,1781218236000,-161.05,0.00024886,7]
[424869072,1781218236000,-513.5,0.00024324,2]
[424869080,1781218236000,-167.52,0.00024658,2]
[424869097,1781218237000,-1254.41808677,0.00025025,2]
[424869098,1781218237000,-961.73426979,0.00025025,2]
[424869100,1781218237000,-167.52,0.00025115,30]
[424869101,1781218237000,-161.05,0.00025343,2]
[424869102,1781218237000,-167.52,0.00025343,2]
[424869099,1781218237000,-161.05,0.00025115,30]
[424869103,1781218237000,-150.0,0.00025373,2]
[424869105,1781218237000,-470.38,0.00025402,2]
[424869107,1781218237000,-2884.75459676,0.00025573,2]
[424869106,1781218237000,-502.0,0.00025403,8]
[424869104,1781218237000,-425.36646954,0.00025395,2]
[424869121,1781218238000,-152.91177246,0.00026386,2]
[424869114,1781218238000,-500.0,0.00025945,2]
[424869117,1781218238000,-2373.84843247,0.00026164,2]
[424869116,1781218238000,-2991.49051684,0.00026121,2]
[424869115,1781218238000,-731.50273204,0.00025945,2]
[424869112,1781218238000,-500.0,0.00025919,2]
[424869110,1781218238000,-2234.69,0.00025786,2]
[424869108,1781218238000,-8496.24,0.00025786,2]
[424869113,1781218238000,-500.0,0.00025919,2]
[424869109,1781218238000,-1393.94,0.00025786,2]
[424869122,1781218238000,-155.73201422,0.00026386,2]
[424869111,1781218238000,-2500.0,0.000259,7]
[424869118,1781218238000,-1090.43288558,0.00026164,2]
[424869119,1781218238000,-513.5,0.00026296,2]
[424869144,1781218238000,-500.0,0.00012751,2]
[424869123,1781218238000,-158.55225595,0.00026386,2]
[424869124,1781218238000,-184.8,0.000265,7]
[424869126,1781218238000,-4064.09791465,0.00026647,2]
[424869127,1781218238000,-479.0,0.00026647,2]
[424869125,1781218238000,-150.0,0.00026641,2]
[424869138,1781218238000,-377.7430841,0.00012751,2]
[424869146,1781218238000,-197.54287454,0.00012751,2]
[424869141,1781218238000,-122.2569159,0.00012751,2]
[424869148,1781218238000,-500.0,0.00012751,2]
[424869152,1781218238000,-500.0,0.00012751,2]
[424869156,1781218238000,-456.90208535,0.00026647,2]
[424869154,1781218238000,-215.95576085,0.00013421,2]
[424869120,1781218238000,-502.0,0.00026328,9]
[424869150,1781218238000,-500.0,0.00012751,2]
[424869160,1781218239000,-502.0,0.00027254,10]
[424869158,1781218239000,-352.99,0.0002665,2]
[424869165,1781218239000,-154.12667992,0.00027357,7]
[424869167,1781218239000,-157.83281999,0.00027357,7]
[424869173,1781218239000,-1500.0,0.00027397,2]
[424869171,1781218239000,-172.67656375,0.00027358,7]
[424869169,1781218239000,-176.84634028,0.00027358,7]
[424869175,1781218239000,-397.0,0.00027397,2]
[424869177,1781218239000,-282.5,0.00027397,2]
[424869179,1781218239000,-444.68567847,0.00027397,10]
[424869182,1781218239000,-552.068845,0.00027397,10]
[424869162,1781218239000,-352.99,0.00027316,2]
[424869246,1781218240000,-1048.89730648,0.00027549,2]
[424869247,1781218240000,-1191.11104074,0.00027549,2]
[424869248,1781218240000,-578.20924308,0.00027549,2]
[424869253,1781218240000,-2287.58423773,0.00027549,2]
[424869249,1781218240000,-1235.18214925,0.00027549,2]
[424869250,1781218240000,-693.39197629,0.00027549,2]
[424869252,1781218240000,-151.0,0.00027549,2]
[424869254,1781218240000,-152.26122564,0.00027549,2]
[424869243,1781218240000,-1107.63007,0.00027549,2]
[424869251,1781218240000,-1280.88388877,0.00027549,2]
[424869237,1781218240000,-4391.56,0.00027397,10]
[424869244,1781218240000,-174.61919141,0.00027549,2]
[424869240,1781218240000,-500.0,0.000275,7]
[424869241,1781218240000,-1030.0,0.00027549,2]
[424869245,1781218240000,-1148.61238259,0.00027549,2]
[424869242,1781218240000,-1068.11,0.00027549,2]
[424869238,1781218240000,-3659.64,0.00027397,10]
[424869236,1781218240000,-2777.76854475,0.00027397,10]
[424869234,1781218240000,-406.5945204,0.00027397,10]
[424869235,1781218240000,-674.12308737,0.00027397,10]
[424869233,1781218240000,-414.63932401,0.00027397,10]
[424869255,1781218240000,-1328.27659266,0.00027549,2]
[424869239,1781218240000,-488.92,0.00027428,7]
[424869257,1781218240000,-1377.42282658,0.00027549,2]
[424869259,1781218240000,-9552.16786547,0.00027549,2]
[424869276,1781218240000,-1592.87721992,0.00027549,2]
[424869282,1781218240000,-1712.93078311,0.00027549,2]
[424869256,1781218240000,-209.40437684,0.00027549,2]
[424869277,1781218240000,-152.0,0.00027549,2]
[424869274,1781218240000,-500.0,0.00027549,2]
[424869275,1781218240000,-500.0,0.00027549,2]
[424869278,1781218240000,-500.0,0.00027549,2]
[424869273,1781218240000,-152.0,0.00027549,2]
[424869272,1781218240000,-500.0,0.00027549,2]
[424869281,1781218240000,-152.0,0.00027549,2]
[424869280,1781218240000,-500.0,0.00027549,2]
[424869279,1781218240000,-1651.81367706,0.00027549,2]
[424869271,1781218240000,-1536.04360648,0.00027549,2]
[424869270,1781218240000,-500.0,0.00027549,2]
[424869265,1781218240000,-151.0,0.00027549,2]
[424869269,1781218240000,-1481.2378076,0.00027549,2]
[424869261,1781218240000,-160.2706454,0.00027549,2]
[424869266,1781218240000,-151.0,0.00027549,2]
[424869262,1781218240000,-721.12765534,0.00027549,2]
[424869267,1781218240000,-500.0,0.00027549,2]
[424869260,1781218240000,-151.0,0.00027549,2]
[424869263,1781218240000,-500.0,0.00027549,2]
[424869264,1781218240000,-1428.38747117,0.00027549,2]
[424869268,1781218240000,-209.40437684,0.00027549,2]
[424869258,1781218240000,-209.40437684,0.00027549,2]
[424869320,1781218241000,-159.55,0.00027906,30]
[424869311,1781218241000,-164.25,0.00027731,7]
[424869308,1781218241000,-273.28,0.00027711,7]
[424869310,1781218241000,-159.55,0.00027728,7]
[424869313,1781218241000,-159.55,0.00027773,30]
[424869315,1781218241000,-159.55,0.00027817,2]
[424869317,1781218241000,-159.55,0.00027862,7]
[424869318,1781218241000,-273.28,0.00027872,2]
[424869314,1781218241000,-152.91177246,0.00027774,2]
[424869316,1781218241000,-151.0,0.00027824,2]
[424869323,1781218241000,-159.55,0.00027951,2]
[424869312,1781218241000,-151.0,0.00027769,2]
[424869321,1781218241000,-164.25,0.00027912,2]
[424869324,1781218241000,-150.0,0.00027973,2]
[424869322,1781218241000,-151.0,0.00027934,2]
[424869325,1781218241000,-352.99,0.00027982,2]
[424869328,1781218241000,-273.28,0.00028033,30]
[424869327,1781218241000,-159.55,0.00027996,7]
[424869329,1781218241000,-192.1695424,0.00028034,2]
[424869331,1781218241000,-159.55,0.0002804,30]
[424869335,1781218241000,-159.55,0.00028085,2]
[424869326,1781218241000,-151.0,0.00027989,2]
[424869338,1781218241000,-1048.89730648,0.00028097,2]
[424869319,1781218241000,-151.0,0.00027879,2]
[424869309,1781218241000,-151.0,0.00027714,2]
[424869354,1781218241000,-164.25,0.00028275,7]
[424869306,1781218241000,-151.0,0.00027659,2]
[424869337,1781218241000,-181.08010149,0.00028097,2]
[424869284,1781218241000,-152.0,0.00027549,2]
[424869288,1781218241000,-1842.0326633,0.00027549,2]
[424869285,1781218241000,-1776.30922209,0.00027549,2]
[424869286,1781218241000,-500.0,0.00027549,2]
[424869287,1781218241000,-152.0,0.00027549,2]
[424869290,1781218241000,-152.0,0.00027549,2]
[424869291,1781218241000,-1910.18787185,0.00027549,2]
[424869283,1781218241000,-500.0,0.00027549,2]
[424869289,1781218241000,-500.0,0.00027549,2]
[424869292,1781218241000,-1980.8648231,0.00027549,2]
[424869307,1781218241000,-159.55,0.00027683,2]
[424869295,1781218241000,-2054.15682156,0.00027549,2]
[424869297,1781218241000,-152.0,0.00027549,2]
[424869299,1781218241000,-273.28,0.0002755,30]
[424869301,1781218241000,-159.55,0.0002755,2]
[424869303,1781218241000,-159.55,0.00027594,7]
[424869294,1781218241000,-152.0,0.00027549,2]
[424869296,1781218241000,-152.0,0.00027549,2]
[424869302,1781218241000,-150.0,0.00027564,2]
[424869300,1781218241000,-164.25,0.0002755,30]
[424869298,1781218241000,-152.0,0.00027549,2]
[424869304,1781218241000,-151.0,0.00027604,2]
[424869305,1781218241000,-159.55,0.00027639,30]
[424869293,1781218241000,-152.0,0.00027549,2]
[424869336,1781218241000,-164.25,0.00028093,30]
[424869368,1781218241000,-169.83713064,0.00028645,2]
[424869333,1781218241000,-151.0,0.00028044,2]
[424869366,1781218241000,-152.26122564,0.00028645,2]
[424869369,1781218241000,-3608.58677102,0.00028645,2]
[424869371,1781218241000,-225.18697532,0.00028645,2]
[424869380,1781218241000,-475.0,0.000289,2]
[424869372,1781218241000,-352.99,0.00028649,2]
[424869373,1781218241000,-308.25335984,0.0002865,7]
[424869334,1781218241000,-153.38,0.00028085,2]
[424869377,1781218241000,-207.03612316,0.00028767,120]
[424869374,1781218241000,-315.66563998,0.0002865,7]
[424869375,1781218241000,-353.69268055,0.0002865,7]
[424869378,1781218241000,-164.25,0.00028818,7]
[424869364,1781218241000,-1048.89730648,0.00028645,2]
[424869376,1781218241000,-273.28,0.00028677,7]
[424869381,1781218241000,-301.15,0.00028971,30]
[424869382,1781218241000,-273.33,0.00029,30]
[424869383,1781218241000,-164.28,0.00029,2]
[424869389,1781218241000,-500.0,0.00029,2]
[424869384,1781218241000,-500.0,0.00029,2]
[424869390,1781218241000,-731.50273204,0.00029079,2]
[424869391,1781218241000,-502.0,0.00029104,12]
[424869388,1781218241000,-500.0,0.00029,2]
[424869385,1781218241000,-500.0,0.00029,2]
[424869386,1781218241000,-500.0,0.00029,2]
[424869387,1781218241000,-500.0,0.00029,2]
[424869379,1781218241000,-273.28,0.00028838,2]
[424869362,1781218241000,-164.25,0.00028637,30]
[424869370,1781218241000,-151.0,0.00028645,2]
[424869365,1781218241000,-151.0,0.00028645,2]
[424869340,1781218241000,-151.0,0.00028097,2]
[424869346,1781218241000,-217.15233878,0.00028097,2]
[424869347,1781218241000,-151.0,0.00028099,2]
[424869341,1781218241000,-152.26122564,0.00028097,2]
[424869349,1781218241000,-153.43,0.0002813,7]
[424869339,1781218241000,-511.68816082,0.00028097,2]
[424869344,1781218241000,-9905.59807649,0.00028097,2]
[424869343,1781218241000,-217.15233878,0.00028097,2]
[424869342,1781218241000,-217.15233878,0.00028097,2]
[424869345,1781218241000,-151.0,0.00028097,2]
[424869350,1781218241000,-159.56,0.0002813,7]
[424869355,1781218241000,-2373.84843247,0.00028291,2]
[424869348,1781218241000,-155.73201422,0.00028106,2]
[424869367,1781218241000,-225.18697532,0.00028645,2]
[424869356,1781218241000,-1090.43288558,0.00028291,2]
[424869353,1781218241000,-513.5,0.00028267,2]
[424869352,1781218241000,-273.28,0.00028194,7]
[424869358,1781218241000,-164.25,0.00028456,2]
[424869351,1781218241000,-502.0,0.00028179,11]
[424869359,1781218241000,-273.28,0.00028516,30]
[424869360,1781218241000,-183.16706212,0.00028627,7]
[424869361,1781218241000,-176.52441709,0.00028627,7]
[424869363,1781218241000,-187.78006524,0.00028645,2]
[424869357,1781218241000,-273.28,0.00028355,2]
[424869424,1781218242000,-201.93286098,0.00029741,2]
[424869421,1781218242000,-473.49845997,0.00029512,7]
[424869422,1781218242000,-530.53902083,0.00029512,7]
[424869439,1781218242000,-443.46921058,0.00030063,7]
[424869420,1781218242000,-462.38003977,0.00029512,7]
[424869416,1781218242000,-353.04883418,0.00029489,7]
[424869423,1781218242000,-293.57143783,0.00029512,7]
[424869418,1781218242000,-237.83765567,0.00029489,7]
[424869419,1781218242000,-322.32958566,0.00029512,7]
[424869425,1781218242000,-1048.89730648,0.00029741,2]
[424869432,1781218242000,-200.0,0.0003,120]
[424869428,1781218242000,-151.0,0.00029741,2]
[424869427,1781218242000,-152.26122564,0.00029741,2]
[424869431,1781218242000,-160.0,0.0003,7]
[424869434,1781218242000,-26588.85537872,0.00030052,7]
[424869426,1781218242000,-151.0,0.00029741,2]
[424869430,1781218242000,-1013.1032934,0.0003,2]
[424869433,1781218242000,-502.0,0.0003003,13]
[424869417,1781218242000,-366.33412424,0.00029489,7]
[424869429,1781218242000,-346.05832315,0.00029741,2]
[424869414,1781218242000,-150.0,0.00029372,2]
[424869392,1781218242000,-740.0,0.00029142,30]
[424869411,1781218242000,-233.5188934,0.00029193,2]
[424869441,1781218242000,-529.57325127,0.00030063,7]
[424869393,1781218242000,-163.0,0.00029142,30]
[424869394,1781218242000,-154.0,0.00029142,30]
[424869396,1781218242000,-163.0,0.00029142,30]
[424869395,1781218242000,-322.0,0.00029142,30]
[424869399,1781218242000,-170.0,0.00029142,30]